Cogmind - Beta 12 @@@ ROGUE MODE // 2023.12.07 @ 18:18:51 Player: Mozco Result: Destroyed by G-67 Veteran with Plasma Rifle Performance ------------- Evolutions (5) 2500 Regions Visited (18) 3600 Robots Destroyed (238) 1190 Value Destroyed (10667) 10667 Prototype IDs (31) 620 Alien Tech Used (0) 0 Bonus (7397) 7397 TOTAL SCORE: 25974 Bonus ------- High Alert Combat Kills 1331 Follower Combat Kills 2652 Entered Garrisons 800 Used RIF Installer 2000 Network Hubs Disabled 800 Aligned with FarCom 300 Met R17 at Cetus 500 Friendly Fire -986 Cogmind --------- Core Integrity 0/1000 Matter 121/300 Energy 111/210 System Corruption 13% Temperature Cool (16) Movement Immobile (Siege) Location -5/Factory Parts ------- > --- POWER (2) -------- Light Fission Core Micro Fission Core > --- PROPULSION (4) --- Centrium Heavy Treads Centrium Heavy Treads (fused) > --- UTILITY (8) ------ Advanced Cooling System High-capacity Storage Unit Improved Target Analyzer Force Field Advanced Hacking Suite Advanced System Shield Relay Coupler [NC] (11) Corruption Screen > --- WEAPON (3) ------- Advanced Plasma Cannon Enhanced Gauss Cannon > --- INVENTORY (20) --- Reinforced Fission Core Armored Medium Treads Centrium Heavy Treads Carbon-fiber Leg Flexi-carbon Leg Improved Kinecellerator Improved Kinecellerator Improved Medium Armor Plating Skeleton Box Long-range Tractor Beam Heavy Linear Accelerator Improved Remote Datajack Peak State ------------ > --- POWER ------------ Quantum Reactor > --- PROPULSION ------- Improved Heavy Treads Centrium Heavy Treads > --- UTILITY ---------- Advanced Heat Sink Advanced Heat Sink High-capacity Storage Unit Improved Target Analyzer Centrium Medium Armor Plating Centrium Medium Armor Plating Relay Coupler [NC] > --- WEAPON ----------- Bore Cannon Heavy Linear Accelerator > --- INVENTORY -------- Quantum Reactor Medium Treads Medium Treads Medium Treads Centrium Heavy Treads Advanced Weapon Cycler Centrium Medium Armor Plating Centrium Medium Armor Plating Relay Coupler [NC] Skeleton Box Improved System Restoration Module Improved System Restoration Module High-powered Tractor Beam Mini Assault Cannon Long-range Missile Launcher Advanced Datajack Spear [Rating: 107] Favorites ----------- Power Reinforced Deuterium Engine Engine Reinforced Deuterium Engine Power Core Micro Fission Core Reactor Quantum Reactor Propulsion Light Treads Treads Light Treads Leg Carbon-fiber Leg Wheel Compact Wheel Utility High-capacity Storage Unit Device Advanced Heat Sink Storage High-capacity Storage Unit Processor Improved Target Analyzer Hackware Relay Coupler [NC] Protection Hardened Light Armor Plating Weapon Mini Assault Cannon Energy Gun Gatling Laser Energy Cannon Advanced Plasma Cannon Ballistic Gun Gauss Rifle Ballistic Cannon Mini Assault Cannon Launcher Rocket Launcher Special Weapon Remote Datajack Impact Weapon Great Maul Slashing Weapon Axe Piercing Weapon Spear Special Melee Weapon Advanced Datajack Build | -11 -10 -10 -10 -9 -8 -8 -8 -8 -7 -7 -7 -7 -6 -6 -6 -6 -6 -5 ------- Run | Jun Mat Min Exi Min Mat Gar Mat Gar Fac Gar Fac Gar Fac Ext Cet Arc Hub Fac Slots Evolved 10 | . . . . . 4 . . . 2 . . . 2 . . . . 2 Power 1 | . . . . . . . . . . . . . . . . . . 1 Propulsion 2 | . . . . . 2 . . . . . . . . . . . . . Utility 6 | . . . . . 2 . . . 1 . . . 2 . . . . 1 Weapon 1 | . . . . . . . . . 1 . . . . . . . . . Parts Attached 315 | 7 12 6 3 6 8 25 9 19 9 20 16 23 19 16 9 7 17 84 Power 26 | 2 1 1 . . 1 4 . 1 . 3 . 1 1 . 1 . 1 9 Engine 10 | 2 1 1 . . 1 1 . 1 . 2 . . 1 . . . . . Core 14 | . . . . . . 3 . . . 1 . 1 . . . . . 9 Reactor 2 | . . . . . . . . . . . . . . . 1 . 1 . Propulsion 74 | 2 3 . . 2 1 7 3 7 3 6 5 6 . 4 1 1 3 20 Treads 35 | . . . . 2 1 4 3 2 . . 2 2 . 4 1 1 3 10 Leg 28 | . . . . . . 3 . 5 3 6 3 4 . . . . . 4 Wheel 11 | 2 3 . . . . . . . . . . . . . . . . 6 Hover . | . . . . . . . . . . . . . . . . . . . Flight . | . . . . . . . . . . . . . . . . . . . Utility 112 | 1 4 3 . 2 2 5 4 3 3 5 6 10 9 9 5 4 4 33 Device 38 | . . . . 1 1 1 1 1 . 1 1 1 2 5 1 4 1 17 Storage 8 | 1 2 . . . . . . . . . . . 1 1 . . . 3 Processor 9 | . . . . . 1 . 1 . . 1 . . 2 . . . . 4 Hackware 20 | . . . . . . . . 1 2 3 1 7 1 . 1 . . 4 Protection 37 | . 2 3 . 1 . 4 2 1 1 . 4 2 3 3 3 . 3 5 Artifact . | . . . . . . . . . . . . . . . . . . . Weapon 103 | 2 4 2 3 2 4 9 2 8 3 6 5 6 9 3 2 2 9 22 Energy Gun 29 | 1 3 2 2 2 3 3 1 2 1 . 1 3 1 1 . 1 1 1 Energy Cannon 2 | . . . 1 . . . . . . . . . . . . . . 1 Ballistic Gun 12 | 1 1 . . . . 2 . . 1 2 . . . . . . . 5 Ballistic Cannon 23 | . . . . . . . . . . 1 4 3 5 1 1 1 4 3 Launcher 9 | . . . . . 1 2 . 2 . . . . 1 1 1 . 1 . Special Weapon 12 | . . . . . . . . 2 1 1 . . 2 . . . 1 5 Impact Weapon 7 | . . . . . . 2 1 2 . 2 . . . . . . . . Slashing Weapon 4 | . . . . . . . . . . . . . . . . . . 4 Piercing Weapon 3 | . . . . . . . . . . . . . . . . . 2 1 Special Melee Weapon 2 | . . . . . . . . . . . . . . . . . . 2 Unidentified Prototypes 6 | . . . . 1 1 . . . . . 1 . . . 2 . . 1 Corrupted Parts 2 | . . . . . . . . 2 . . . . . . . . . . System Corruption 13 | . . . . . . . . 13 . . . . . . . . . . Parts Lost 86 | . . 5 . 2 . 11 1 7 6 2 2 1 2 4 . . 18 25 Power 8 | . . 1 . . . 1 . 1 1 . . . . . . . 2 2 Propulsion 26 | . . 1 . 1 . 5 . 4 2 2 2 . . 2 . . 3 4 Utility 28 | . . 1 . . . 3 1 1 1 . . 1 1 1 . . 9 9 Weapon 24 | . . 2 . 1 . 2 . 1 2 . . . 1 1 . . 4 10 Highest Loss Streak 12 | . . 5 . 2 . 5 1 7 6 2 2 1 2 1 . . 12 6 To Critical Strikes 4 | . . . . . . . . . . . 1 . . 2 . . . 1 Average Slot Usage (%) 84 | . 97 89 84 85 89 93 99 89 82 94 97 87 76 86 84 77 76 72 Engine 4 | . 13 13 14 14 9 3 9 7 5 3 7 3 . 6 1 . . . Core 2 | . . . . . . 4 . . . . . 3 5 . . . . 6 Treads 11 | . . . . 1 27 22 34 15 . . 6 5 13 17 14 13 15 8 Leg 6 | . . . . . . 8 1 18 26 29 21 18 . . . . . 1 Wheel 2 | . 27 18 14 13 . . . . . . . . . . . . . 2 Device 6 | . . . . . 9 6 12 3 . 2 6 6 5 12 13 10 7 8 Storage 7 | . 20 14 14 14 9 9 9 9 7 7 7 7 6 6 6 6 6 5 Processor 5 | . . . . . 8 8 8 9 7 7 7 2 4 6 6 6 5 4 Hackware 6 | . . . . . . . . . 9 15 4 7 7 6 6 6 6 12 Protection 8 | . 7 14 14 13 9 11 5 9 6 4 10 7 12 8 12 13 12 2 Energy Gun 6 | . 21 27 27 28 17 8 13 5 1 4 . 6 3 1 3 4 2 . Ballistic Cannon 5 | . . . . . . . . . . 2 13 6 6 18 11 7 7 3 Special Weapon 2 | . . . . . . . . 3 7 5 7 7 4 . . . 2 2 Naked Turns . | . . . . . . . . . . . . . . . . . . . Heaviest Build 108 | 13 56 52 50 57 58 64 64 63 62 86 86 91 99 92 107 107 108 85 Greatest Support 160 | 26 26 26 16 40 60 80 80 80 60 60 63 150 150 130 155 155 155 160 Greatest Overweight (x) 5 | . 3 3 3 3 . 2 1 2 1 1 2 1 . 1 . . . 5 Average Overweight (x) . | . 1 2 2 2 . . . . 1 . 1 . . . . . . 1 Largest Inventory Capacity 20 | 8 20 20 20 20 20 20 20 20 20 20 20 20 20 20 20 20 20 20 Average Capacity 19 | 6 16 20 20 20 20 20 20 20 20 20 20 20 20 20 20 20 20 15 Most Carried 20 | 6 18 20 19 20 17 20 20 20 20 20 20 20 20 20 20 20 20 20 Average Carried 17 | 3 12 17 18 19 15 17 19 18 18 18 19 19 19 18 19 19 18 12 Final Capacity 20 | 8 20 20 20 20 20 20 20 20 20 20 20 20 20 20 20 20 20 20 Final Carried 20 | 6 18 18 19 17 17 17 20 20 18 20 20 20 17 20 20 20 14 14 Class Distribution -------------------- 25% | Scavenger-Mutant 22% | Bothacker-Mutant 21% | Mutant 10% | Hacker-Mutant 4% | Scavenger-Skirmisher 3% | Commander-Tank 3% | Commander-Skirmisher Dominant Class ---------------- Mutant | -10/Materials Mutant | -10/Mines Mutant | -10/Exiles Mutant | -9/Mines Skirmisher | -8/Materials Scavenger-Mutant | -8/Garrison Scavenger-Skirmisher | -8/Materials Scavenger-Mutant | -8/Garrison Bothacker-Mutant | -7/Factory Bothacker-Mutant | -7/Garrison Bothacker-Mutant | -7/Factory Bothacker-Mutant | -7/Garrison Scavenger-Mutant | -6/Factory Commander-Skirmisher | -6/Extension Commander-Tank | -6/Cetus Scavenger-Mutant | -6/Archives Scavenger-Mutant | -6/Hub_04(d) Hacker-Mutant | -5/Factory Resources | -11 -10 -10 -10 -9 -8 -8 -8 -8 -7 -7 -7 -7 -6 -6 -6 -6 -6 -5 ----------- Run | Jun Mat Min Exi Min Mat Gar Mat Gar Fac Gar Fac Gar Fac Ext Cet Arc Hub Fac Matter Collected 7428 | 240 177 51 . 90 64 400 105 289 219 512 282 581 656 968 264 425 469 1636 Remotely 1190 | . . . . . . . . . . . . . . 864 78 184 64 . Salvage Created 9492 | . 416 226 . 214 135 945 436 325 209 396 230 708 986 598 222 258 793 2395 Parts 397 | . 19 14 . 21 11 48 11 10 12 13 10 24 25 21 12 13 41 92 Haulers Intercepted 7 | . 1 . . . . . 1 . . . 1 . 1 . . . . 3 Recyclers Shooed 14 | . 1 . . . . . 1 . . . . . 5 1 . . . 6 Parts Field Recycled . | . . . . . . . . . . . . . . . . . . . Retrieved Matter . | . . . . . . . . . . . . . . . . . . . Parts Self-Destructed . | . . . . . . . . . . . . . . . . . . . Prevented . | . . . . . . . . . . . . . . . . . . . Kills | -11 -10 -10 -10 -9 -8 -8 -8 -8 -7 -7 -7 -7 -6 -6 -6 -6 -6 -5 ------- Run | Jun Mat Min Exi Min Mat Gar Mat Gar Fac Gar Fac Gar Fac Ext Cet Arc Hub Fac Combat Hostiles Destroyed 167 | . 2 5 . 6 5 31 6 10 3 11 3 8 13 13 10 3 8 30 Melee 16 | . . . . . . 2 4 3 . . . . . . . . 3 4 Guns 65 | . 2 5 . 6 3 12 . 2 3 7 1 7 7 1 2 . . 7 Cannons 45 | . . . . . . . . . . 4 2 1 3 12 2 3 3 15 AOE 34 | . . . . . 2 15 . 5 . . . . 3 . 6 . . 3 Classes Destroyed 17 | . 6 . . 4 1 1 1 2 . 1 . . . 1 . . . . Worker 14 | . 1 . . . . . . . . . . . 1 . . . 7 5 Builder 12 | . . . . 1 . . . . . . 1 . 2 . . . 4 4 Tunneler 2 | . . . . 2 . . . . . . . . . . . . . . Hauler 7 | . 1 . . . . . 1 . . . 1 . 1 . . . . 3 Recycler 16 | . 3 . . . . . 1 . . . 1 . 4 1 . . 1 5 Operator 10 | . 1 . . . . . . . . . . . . . . 9 . . Watcher 7 | . 1 . . . . . . 1 . . . 1 . . . . 2 2 Swarmer 30 | . . . . 5 3 10 . . . . . 6 3 . 3 . . . Grunt 71 | . 2 5 . . 1 17 4 7 2 7 . . 3 5 3 . 1 14 Brawler 5 | . . . . . . 1 1 . . . . 1 . . . . . 2 Duelist 3 | . . . . 1 . . . . . . . . 1 . 1 . . . Protector 3 | . . . . . . . . 1 . . . 1 . . . . 1 . Sentry 20 | . . . . . 1 3 . . 1 1 1 . 1 6 . 3 3 . Demolisher 1 | . . . . . . . . 1 . . . . . . . . . . Hunter 16 | . . . . . . . 1 1 1 1 2 . 2 . 1 . 2 5 Programmer 16 | . . . . . . . . . . 2 . . 3 . 1 . 1 9 Behemoth 1 | . . . . . . . . . . . . . . 1 . . . . Cetus Guard 1 | . . . . . . . . . . . . . . . 1 . . . Savage 2 | . . . . . . . 1 . . . . . . . 1 . . . Guerrilla 1 | . . . . . . . . . . . . . . 1 . . . . Best Kill Streak 12 | . 3 3 . 3 3 4 3 4 3 2 2 5 5 3 7 4 7 12 Combat Bots Only 7 | . 2 3 . 3 3 4 3 4 3 2 1 5 3 3 7 1 3 6 Max Kills in Single Turn 4 | . 1 2 . 2 2 3 1 2 1 1 1 2 2 1 3 1 4 4 Gunslinging 1 | . . 1 . 1 . . . . . . . . . . . . . . Exploded 3 | . . . . . 2 3 . 2 . . . . 2 . 3 . . 3 Melee 1 | . . . . . . 1 1 1 . . . . . . . . 1 1 Uniques/NPCs Destroyed . | . . . . . . . . . . . . . . . . . . . Combat | -11 -10 -10 -10 -9 -8 -8 -8 -8 -7 -7 -7 -7 -6 -6 -6 -6 -6 -5 -------- Run | Jun Mat Min Exi Min Mat Gar Mat Gar Fac Gar Fac Gar Fac Ext Cet Arc Hub Fac Damage Taken 23288 | . 86 358 . 161 172 1387 658 1376 828 518 449 798 1472 1916 645 349 5485 6630 Core 2774 | . 12 63 . 25 25 172 97 159 207 93 66 76 36 185 13 21 518 1006 Absorbed by Shields 200 | . . . . . . 20 . . . . . . . 11 . . . 169 Reduced by Siege Mode 39 | . . . . . . . . . . . . . . . . . . 39 Redirected to Shielding 190 | . . 42 . 23 8 13 . . . . . . . . . . . 104 Regen/Repaired (Parts) 1107 | . . . . . . . . . . . . . 63 . . . . 1044 Core Remaining (%) 44 | 100 . . . 60 . . . 17 . . . 36 . . . . 9 . Volleys Fired 721 | . 18 11 . 15 13 71 7 35 30 63 21 71 87 44 18 68 26 123 Largest 3 | . 2 2 . 2 2 2 2 1 2 2 2 2 3 3 3 2 2 3 Hottest 176 | . 90 90 . 101 100 75 120 65 93 93 96 160 176 176 176 131 163 155 Shots Fired 1044 | . 36 22 . 28 23 78 14 35 37 79 33 93 114 121 32 84 43 172 Gun 518 | . 36 22 . 28 22 63 14 20 23 54 3 56 59 3 3 50 10 52 Cannon 395 | . . . . . . . . . . 8 27 13 32 117 22 34 29 113 Launcher 42 | . . . . . 1 15 . 10 . . . . 5 1 7 . 3 . Special 89 | . . . . . . . . 5 14 17 3 24 18 . . . 1 7 Kinetic 496 | . 9 . . . . 18 . . 16 48 27 13 32 117 22 34 29 131 Thermal 334 | . 9 . . 3 10 34 14 20 13 14 3 56 59 3 3 50 10 33 Explosive 42 | . . . . . 1 15 . 10 . . . . 5 1 7 . 3 . Electromagnetic 89 | . 18 22 . 25 12 11 . . . . . . . . . . . 1 Robot Hit Streak 40 | . 9 6 . 7 4 8 14 6 6 9 16 40 18 20 8 12 9 12 Robot Miss Streak 6 | . 2 2 . 1 2 5 2 3 3 2 2 3 5 3 2 4 6 6 Penetration Max 1 | . . . . . . . . . 1 1 . . . . . 1 . 1 Secondary Targets 4 | . . 1 . 1 . . . . 1 . . . . . . . . 1 Max Gunslinging Chain 1 | . . 1 . 1 . . . . 1 . . . . . . . . 1 Shots Hit Robots 778 | . 26 16 . 20 14 60 26 25 27 48 22 72 91 79 21 71 27 133 Core Hits 481 | . 12 8 . 11 7 48 7 18 9 17 12 58 66 33 27 44 36 68 Critical Kills 7 | . . . . . . . 1 1 . . . . . . . . 1 4 Critical Parts Destroyed 11 | . . . . . . 4 4 2 . . . . . . . . . 1 Critical Strikes 47 | . . . . . 1 5 6 3 . . . . 2 9 . 4 2 15 Burn 2 | . . . . . . 1 1 . . . . . . . . . . . Meltdown 2 | . . . . . . . . . . . . . . . . . . 2 Destroy 4 | . . . . . . . . . . . . . . . . . 1 3 Blast 21 | . . . . . . . . . . . . . 2 9 . 4 . 6 Corrupt 1 | . . . . . 1 . . . . . . . . . . . . . Smash 12 | . . . . . . 4 5 3 . . . . . . . . . . Sever 4 | . . . . . . . . . . . . . . . . . . 4 Impale 1 | . . . . . . . . . . . . . . . . . 1 . Melee Attacks 142 | . . . . . . 25 24 15 1 8 . . . . . . 16 53 Impact 73 | . . . . . . 25 24 15 1 8 . . . . . . . . Slashing 46 | . . . . . . . . . . . . . . . . . . 46 Piercing 16 | . . . . . . . . . . . . . . . . . 16 . Sneak Attacks 12 | . . . . . . 1 1 . 1 . . . . . . . 1 8 Combat Hostiles 1 | . . . . . . 1 . . . . . . . . . . . . Follow-up Attacks . | . . . . . . . . . . . . . . . . . . . Damage Inflicted 28024 | . 427 319 . 266 391 2497 833 1290 456 1009 495 1496 2684 2315 2011 2549 2441 6545 Guns 8139 | . 400 255 . 266 224 627 233 148 311 607 89 1430 1366 54 83 1004 200 842 Cannons 10115 | . . . . . . . . . . 402 406 66 873 2261 668 1545 483 3411 Explosions 6658 | . 22 64 . . 167 1327 . 756 . . . . 445 . 1260 . 1390 1227 Melee 3032 | . . . . . . 543 600 386 92 . . . . . . . 368 1043 Ramming 27 | . 5 . . . . . . . . . . . . . . . . 22 Kinetic 10933 | . 105 . . . . 71 . . 217 927 406 66 873 2261 668 1545 483 3311 Thermal 6581 | . 93 64 . 14 143 506 233 148 147 82 89 1430 1366 54 83 1004 200 925 Explosive 5096 | . . . . . 102 1290 . 756 . . . . 445 . 1260 . 16 1227 Electromagnetic 2355 | . 224 255 . 252 146 87 . . . . . . . . . . 1374 17 Impact 1621 | . . . . . . 543 600 386 92 . . . . . . . . . Slashing 1043 | . . . . . . . . . . . . . . . . . . 1043 Piercing 368 | . . . . . . . . . . . . . . . . . 368 . Highest Corruption 21 | . . . . . . . 3 16 . 2 2 2 5 6 6 6 21 16 Average Corruption 5 | . . . . . . . 2 9 . 1 2 2 3 5 6 5 6 10 Corruption Purged 23 | . . . . . . . . . . . . . . . . 6 . 17 Corruption Blocked 4 | . . . . . . . . . . . . . . . . . . 4 Effects 251 | . . . . . . . 1 27 . 14 11 18 13 50 10 6 5 96 Message Errors 53 | . . . . . . . . 3 . 2 3 5 2 18 4 1 . 15 Matter Fused 65 | . . . . . . . . 13 . 4 2 5 5 12 1 . . 23 Heat Flow Errors 36 | . . . . . . . . 5 . 2 2 2 1 7 2 1 1 13 Energy Discharges 29 | . . . . . . . 1 3 . 2 . 1 4 5 1 1 1 10 Parts Rejected 4 | . . . . . . . . 1 . . 1 . . 1 . . 1 . Parts Fused 4 | . . . . . . . . 1 . . . 1 . 1 . . . 1 Data Loss (minor) 30 | . . . . . . . . 1 . 4 2 4 . 2 1 1 1 14 Data Loss (major) 11 | . . . . . . . . . . . 1 . . . . 1 . 9 Misfires 9 | . . . . . . . . . . . . . 1 3 1 . . 4 Alerts 3 | . . . . . . . . . . . . . . . . . . 3 Misdirections 3 | . . . . . . . . . . . . . . . . . 1 2 Weapon Failures 4 | . . . . . . . . . . . . . . 1 . 1 . 2 Overload Shots . | . . . . . . . . . . . . . . . . . . . Overflow Damage 1285 | . . 1 . . . 125 194 134 . 24 . 51 53 . 53 52 56 542 Projectiles 611 | . . . . . . . . . . 24 . 51 30 . 38 52 6 410 Explosions 266 | . . 1 . . . 31 . 22 . . . . 23 . 15 . 50 124 Melee 408 | . . . . . . 94 194 112 . . . . . . . . . 8 Knockbacks 51 | . . . . . . . 3 3 . 1 3 . 12 9 1 . 1 18 Impact 5 | . . . . . . . 2 3 . . . . . . . . . . Kinetic 44 | . . . . . . . . . . 1 3 . 11 9 1 . 1 18 Secondary 2 | . . . . . . . 1 . . . . . 1 . . . . . Self-Inflicted Damage 1172 | . 40 50 . . . 81 . 98 . . . . 97 . 27 . 196 583 Shots 23 | . 1 1 . . . 3 . 4 . . . . 3 . 1 . 2 8 Rammed 4 | . 1 . . . . . . . . . . . . 1 . . . 2 Targets Rammed 4 | . 1 . . . . . . . . . . . . 1 . . . 2 Kicked . | . . . . . . . . . . . . . . . . . . . Crushed . | . . . . . . . . . . . . . . . . . . . Highest Temperature 515 | . 132 274 . 104 207 199 18 263 186 150 392 515 219 186 247 193 217 327 Average Temperature 65 | . 34 95 . 39 77 55 8 70 116 42 132 100 29 45 54 66 44 107 Received Heat Transfer 3679 | . 24 174 . . 90 633 252 540 297 126 30 54 126 408 126 45 156 598 Effects 7 | . . . . . . . . . . . 2 3 . . . . . 2 Shutdowns 2 | . . . . . . . . . . . 1 1 . . . . . . Interference 1 | . . . . . . . . . . . . . . . . . . 1 Short Circuit 3 | . . . . . . . . . . . . 2 . . . . . 1 Damage (minor) 1 | . . . . . . . . . . . 1 . . . . . . . Siege Activations 4 | . . . . . . . . . . . . . 1 1 . . . 2 Total Turns 38 | . . . . . . . . . . . . . 11 18 . . . 9 Longest Duration 18 | . . . . . . . . . . . . . 11 18 . . . 8 Robots Corrupted 2 | . . . . . . . . . . . . . . . . . 2 . Combat Hostiles 2 | . . . . . . . . . . . . . . . . . 2 . Parts Fried 20 | . . . . . . 2 3 2 . . . . . . . . 13 . Impact Corruptions 12 | . . . . . . 4 5 3 . . . . . . . . . . Robots Melted 6 | . . . . . . . . . . . . 4 . . . . . 2 Combat Hostiles 1 | . . . . . . . . . . . . . . . . . . 1 Parts Melted 26 | . . . . . 1 1 2 . 2 4 . 6 6 . . 1 . 3 Heat Transferred 13794 | . 200 50 . 37 198 1012 555 350 407 185 200 3250 3000 125 175 2300 450 1300 Parts Sabotaged . | . . . . . . . . . . . . . . . . . . . Parts Stolen . | . . . . . . . . . . . . . . . . . . . Parts Stripped . | . . . . . . . . . . . . . . . . . . . Power Chain Reactions 4 | . 1 1 . . 1 1 . . . . . . . . . . . . Missiles Intercepted . | . . . . . . . . . . . . . . . . . . . Alert | -11 -10 -10 -10 -9 -8 -8 -8 -8 -7 -7 -7 -7 -6 -6 -6 -6 -6 -5 ------- Run | Jun Mat Min Exi Min Mat Gar Mat Gar Fac Gar Fac Gar Fac Ext Cet Arc Hub Fac Peak Influence 1171 | . 150 81 . 130 266 1171 959 730 412 732 432 842 590 425 623 444 1030 756 Initial 569 | . . 3 . . 50 172 569 428 382 288 384 . 431 114 233 249 85 480 Average 368 | . 50 74 . 10 121 738 761 614 384 513 149 460 387 197 399 343 278 322 Maximum Alert Level 4 | . . . . . 1 4 3 3 2 3 2 3 2 2 2 2 3 3 Low Security (%) 28 | 100 100 100 . 100 92 3 . . . . 79 26 . 52 2 . 41 17 Level 1 28 | . . . . . 7 14 . . 85 17 12 9 37 40 50 53 41 55 Level 2 32 | . . . . . . 18 33 81 14 76 8 53 62 7 46 46 5 25 Level 3 9 | . . . . . . 50 66 18 . 6 . 10 . . . . 11 . Level 4 1 | . . . . . . 14 . . . . . . . . . . . . Level 5 . | . . . . . . . . . . . . . . . . . . . High Security . | . . . . . . . . . . . . . . . . . . . Max Security . | . . . . . . . . . . . . . . . . . . . Squads Dispatched 37 | . 3 . . . 2 . 3 . 2 . 3 . 6 1 . . 1 16 Investigation 8 | . 1 . . . . . 1 . . . . . 1 1 . . . 4 Extermination 10 | . . . . . . . . . . . 1 . 4 . . . . 5 Reinforcement 13 | . 2 . . . 1 . 2 . 1 . 2 . 1 . . . 1 3 Assault 1 | . . . . . . . . . . . . . . . . . . 1 Garrison 5 | . . . . . 1 . . . 1 . . . . . . . . 3 Intercept . | . . . . . . . . . . . . . . . . . . . Searches Triggered . | . . . . . . . . . . . . . . . . . . . Construction Impeded . | . . . . . . . . . . . . . . . . . . . Haulers Reinforced 4 | . . . . . . . . . 1 . 1 . . . . . . 2 Active Scanning Responses . | . . . . . . . . . . . . . . . . . . . Cargo Convoy Interrupts . | . . . . . . . . . . . . . . . . . . . Stealth | -11 -10 -10 -10 -9 -8 -8 -8 -8 -7 -7 -7 -7 -6 -6 -6 -6 -6 -5 --------- Run | Jun Mat Min Exi Min Mat Gar Mat Gar Fac Gar Fac Gar Fac Ext Cet Arc Hub Fac Distress Signals 9 | . 1 . . . 2 . 2 . 1 . . . . 1 . . . 2 Communications Jammed 767 | . . . . . . . . . . . . . . 194 475 . 52 46 Distress Signals 767 | . . . . . . . . . . . . . . 194 475 . 52 46 Times Spotted 360 | . 7 6 . 8 11 28 20 15 12 15 6 28 23 37 20 27 25 72 Peak Tracking Total 13 | . 2 4 . 3 4 4 4 5 4 3 2 5 5 5 8 1 13 6 Tactical Retreats 11 | . . . . 2 1 1 2 1 2 . . . . . . . 1 1 Traps | -11 -10 -10 -10 -9 -8 -8 -8 -8 -7 -7 -7 -7 -6 -6 -6 -6 -6 -5 ------- Run | Jun Mat Min Exi Min Mat Gar Mat Gar Fac Gar Fac Gar Fac Ext Cet Arc Hub Fac Traps Triggered 35 | . 4 . . . . 8 2 . . 7 . 3 2 3 . . 2 4 Indirectly 1 | . . . . . . . . . . . . . . . . . 1 . Trap Hack Attempts . | . . . . . . . . . . . . . . . . . . . Triggered . | . . . . . . . . . . . . . . . . . . . Disarmed . | . . . . . . . . . . . . . . . . . . . Reprogrammed . | . . . . . . . . . . . . . . . . . . . Reused . | . . . . . . . . . . . . . . . . . . . Traps Extracted . | . . . . . . . . . . . . . . . . . . . Installed . | . . . . . . . . . . . . . . . . . . . Triggered . | . . . . . . . . . . . . . . . . . . . Machines | -11 -10 -10 -10 -9 -8 -8 -8 -8 -7 -7 -7 -7 -6 -6 -6 -6 -6 -5 ---------- Run | Jun Mat Min Exi Min Mat Gar Mat Gar Fac Gar Fac Gar Fac Ext Cet Arc Hub Fac Machines Disabled 68 | . . . . . . 1 1 1 . 8 . 5 2 2 1 3 26 18 Max in Single Turn 14 | . . . . . . 1 . 1 . 2 . 1 2 1 1 1 14 3 Garrison Access 2 | . . . . . . . . . . . . . . . . . 1 1 Garrison Relay 7 | . . . . . . 1 . 1 . 2 . 3 . . . . . . Phase Generator 1 | . . . . . . . . . . 1 . . . . . . . . Network Hub 4 | . . . . . . . . . . . . . . . . . 4 . Machines Repaired . | . . . . . . . . . . . . . . . . . . . Machines Sabotaged . | . . . . . . . . . . . . . . . . . . . Overloaded Fab Kills . | . . . . . . . . . . . . . . . . . . . Hacking | -11 -10 -10 -10 -9 -8 -8 -8 -8 -7 -7 -7 -7 -6 -6 -6 -6 -6 -5 --------- Run | Jun Mat Min Exi Min Mat Gar Mat Gar Fac Gar Fac Gar Fac Ext Cet Arc Hub Fac Machines Accessed 69 | . 4 . 2 1 5 3 8 2 1 3 5 3 8 7 . 1 1 15 Terminals 42 | . 3 . . . 3 3 5 2 . 3 3 3 4 7 . . . 6 Fabricators 7 | . . . . . . . . . . . . . 2 . . . . 5 Repair Stations 3 | . . . . . . . 1 . . . . . 1 . . . . 1 Recycling Units 2 | . 1 . . . . . . . . . . . . . . . . 1 Scanalyzers 6 | . . . . . 1 . 1 . . . 1 . 1 . . . . 2 Garrison Access 5 | . . . . . 1 . 1 . 1 . 1 . . . . . 1 . Total Hacks 226 | . 14 . 2 1 23 9 17 4 1 4 18 3 19 10 . 2 1 98 Successful 116 | . 5 . 2 1 15 2 8 1 1 2 12 3 9 6 . 2 1 46 Failed 109 | . 8 . . . 8 7 9 3 . 2 6 . 10 4 . . . 52 Catastrophic 19 | . . . . . . . 1 . . 1 2 . 1 2 . . . 12 Database Lockouts 1 | . 1 . . . . . . . . . . . . . . . . . Manual 75 | . 9 . 1 . 13 . 9 . . . 5 . 7 1 . . . 30 Terminals 133 | . 12 . . . 15 9 13 4 . 4 13 3 9 10 . . . 41 Fabricators 27 | . . . . . . . . . . . . . 5 . . . . 22 Repair Stations 14 | . . . . . . . 2 . . . . . 2 . . . . 10 Recycling Units 4 | . 2 . . . . . . . . . . . . . . . . 2 Scanalyzers 38 | . . . . . 7 . 1 . . . 4 . 3 . . . . 23 Garrison Access 5 | . . . . . 1 . 1 . 1 . 1 . . . . . 1 . Terminal Hacks 41 | . 3 . 2 1 4 2 4 1 . 2 5 3 1 6 . 2 . 5 Record 3 | . . . 1 . . . . . . . . . . . . 2 . . Part Schematic 1 | . . . . . . . . . . . 1 . . . . . . . Robot Analysis 11 | . 3 . . . 4 . . . . . 1 . . . . . . 3 Open Door 9 | . . . . 1 . 1 . . . 1 . 1 . 5 . . . . Emergency Access Points 2 | . . . . . . . . . . 1 . 1 . . . . . . Terminal Index 1 | . . . . . . . 1 . . . . . . . . . . . Unreport Threat 5 | . . . . . . . 1 . . . 2 . . . . . . 2 Zone Layout 5 | . . . . . . . 2 . . . 1 . 1 1 . . . . Garrison Registry 1 | . . . . . . . . 1 . . . . . . . . . . Patrol Navigation 1 | . . . . . . . . . . . . 1 . . . . . . Security Stations 1 | . . . . . . 1 . . . . . . . . . . . . EX-Prototype ID Bank 1 | . . . 1 . . . . . . . . . . . . . . . Fabricator Hacks 12 | . . . . . . . . . . . . . 3 . . . . 9 Network Status 1 | . . . . . . . . . . . . . . . . . . 1 Load Schematic 5 | . . . . . . . . . . . . . 2 . . . . 3 Build 6 | . . . . . . . . . . . . . 1 . . . . 5 Repair Station Hacks 9 | . . . . . . . 1 . . . . . 2 . . . . 6 Scan Component 6 | . . . . . . . 1 . . . . . 1 . . . . 4 Repair 3 | . . . . . . . . . . . . . 1 . . . . 2 Recycling Unit Hacks 2 | . 1 . . . . . . . . . . . . . . . . 1 Report Inventory 2 | . 1 . . . . . . . . . . . . . . . . 1 Scanalyzer 30 | . . . . . 7 . . . . . 4 . 1 . . . . 18 Insert Component 14 | . . . . . 3 . . . . . 2 . 1 . . . . 8 Analyze 16 | . . . . . 4 . . . . . 2 . . . . . . 10 Garrison Access Hacks 5 | . . . . . 1 . 1 . 1 . 1 . . . . . 1 . Unlock Access 4 | . . . . . 1 . 1 . 1 . 1 . . . . . . . Seal Access 1 | . . . . . . . . . . . . . . . . . 1 . Unauthorized Hacks 17 | . 1 . . . 3 . 2 . . . 2 . 2 . . . . 7 Terminals 10 | . . . . . 3 . 2 . . . 2 . 2 . . . . 1 Assimilate 2 | . . . . . 1 . . . . . . . . . . . . 1 Botnet 8 | . . . . . 2 . 2 . . . 2 . 2 . . . . . Fabricators 5 | . . . . . . . . . . . . . . . . . . 5 Report 1 | . . . . . . . . . . . . . . . . . . 1 Prioritize 1 | . . . . . . . . . . . . . . . . . . 1 Liberate 1 | . . . . . . . . . . . . . . . . . . 1 Fabnet 1 | . . . . . . . . . . . . . . . . . . 1 Haulers 1 | . . . . . . . . . . . . . . . . . . 1 Repair Stations . | . . . . . . . . . . . . . . . . . . . Recycling Units 2 | . 1 . . . . . . . . . . . . . . . . 1 Monitor 1 | . . . . . . . . . . . . . . . . . . 1 Tunnel 1 | . 1 . . . . . . . . . . . . . . . . . Scanalyzers . | . . . . . . . . . . . . . . . . . . . Garrison Access . | . . . . . . . . . . . . . . . . . . . Data Cores Recovered . | . . . . . . . . . . . . . . . . . . . Used . | . . . . . . . . . . . . . . . . . . . Hacking Detections 51 | . 3 . . . 4 3 6 2 1 1 5 2 8 4 . . . 12 Full Trace Events 10 | . . . . . . 2 1 1 . . . . 1 1 . . . 4 Feedback Events . | . . . . . . . . . . . . . . . . . . . Feedback Blocked . | . . . . . . . . . . . . . . . . . . . Robot Schematics Acquired . | . . . . . . . . . . . . . . . . . . . Robots Built 3 | . . . . . . . . . . . . . . . . . . 3 Authchips . | . . . . . . . . . . . . . . . . . . . Time 67 | . . . . . . . . . . . . . . . . . . 67 Total Robot Build Rating 12 | . . . . . . . . . . . . . . . . . . 12 Part Schematics Acquired 14 | . . . . . 3 . . . . . 3 . . . . . . 8 Parts Built 5 | . . . . . . . . . . . . . 1 . . . . 4 Authchips . | . . . . . . . . . . . . . . . . . . . Time 566 | . . . . . . . . . . . . . 95 . . . . 471 Total Part Build Rating 32 | . . . . . . . . . . . . . 5 . . . . 27 Parts Repaired 3 | . . . . . . . . . . . . . 1 . . . . 2 Time 145 | . . . . . . . . . . . . . 44 . . . . 101 Parts Recycled . | . . . . . . . . . . . . . . . . . . . Recycled Matter . | . . . . . . . . . . . . . . . . . . . Retrieved Matter . | . . . . . . . . . . . . . . . . . . . Retrieved Components . | . . . . . . . . . . . . . . . . . . . Parts Scanalyzed 13 | . . . . . 3 . . . . . 2 . . . . . . 8 Part Schematics Acquired 13 | . . . . . 3 . . . . . 2 . . . . . . 8 Parts Damaged 1 | . . . . . 1 . . . . . . . . . . . . . Bothacking | -11 -10 -10 -10 -9 -8 -8 -8 -8 -7 -7 -7 -7 -6 -6 -6 -6 -6 -5 ------------ Run | Jun Mat Min Exi Min Mat Gar Mat Gar Fac Gar Fac Gar Fac Ext Cet Arc Hub Fac Used RIF Installer 4 | . . . . . . 1 . 1 . 1 . 1 . . . . . . Signal Jammer 1 | . . . . . . . . . . 1 . . . . . . . . Robot Detection 1 | . . . . . . . . . . . . 1 . . . . . . Watcher Feeds 1 | . . . . . . . . 1 . . . . . . . . . . Robots Hacked 38 | . . . . . . . . 2 3 7 1 8 8 . . . . 9 Non-combat 18 | . . . . . . . . . . 1 . . 8 . . . . 9 Combat 20 | . . . . . . . . 2 3 6 1 8 . . . . . . Robot Hacks Applied 52 | . . . . . . . . 4 5 9 3 9 11 . . . . 11 parse_system 2 | . . . . . . . . . . . . 1 1 . . . . . no_distress 5 | . . . . . . . . . . . . . 2 . . . . 3 find_chute 1 | . . . . . . . . . . . . . 1 . . . . . map_walls 1 | . . . . . . . . . . . . . . . . . . 1 map_earth 1 | . . . . . . . . . . . . . 1 . . . . . locate_stockpiles 1 | . . . . . . . . . . . . . 1 . . . . . find_station 2 | . . . . . . . . . . . . . 1 . . . . 1 purge_threat 6 | . . . . . . . . . . 2 . . 2 . . . . 2 disarm_traps 1 | . . . . . . . . . . 1 . . . . . . . . block_reporting 2 | . . . . . . . . . . . . . . . . . . 2 recall_investigation 1 | . . . . . . . . . . . . . . . . . . 1 map_route 2 | . . . . . . . . . . . . . 1 . . . . 1 mark_security 1 | . . . . . . . . . . . . . 1 . . . . . find_garrison 2 | . . . . . . . . . 1 . 1 . . . . . . . scatter_targeting 1 | . . . . . . . . . . 1 . . . . . . . . link_complan 1 | . . . . . . . . 1 . . . . . . . . . . overload_power 2 | . . . . . . . . . 1 1 . . . . . . . . amplify_resonance 6 | . . . . . . . . 2 . 2 . 2 . . . . . . reboot_system 1 | . . . . . . . . . 1 . . . . . . . . . go_dormant 2 | . . . . . . . . . . . 2 . . . . . . . overwrite_iff 4 | . . . . . . . . . 1 2 . 1 . . . . . . streamctrl_high 1 | . . . . . . . . 1 . . . . . . . . . . formatsys_high 6 | . . . . . . . . . 1 . . 5 . . . . . . Relay Couplers Released 29 | . . . . . . 5 . 3 . 6 . 12 . . . . 1 2 Machine Destruction 29 | . . . . . . 5 . 3 . 6 . 12 . . . . 1 2 Attached 16 | . . . . . . . . 1 2 3 . 7 1 . 1 . . 1 Fabnet Peak Effective % . | . . . . . . . . . . . . . . . . . . . Robots Rewired 32 | . . . . . . . . . . 2 . 6 . 24 . . . . Allies Hacked 3 | . . . . . . . . . . . . . . 2 . . . 1 Hacks Repelled . | . . . . . . . . . . . . . . . . . . . Allies | -11 -10 -10 -10 -9 -8 -8 -8 -8 -7 -7 -7 -7 -6 -6 -6 -6 -6 -5 -------- Run | Jun Mat Min Exi Min Mat Gar Mat Gar Fac Gar Fac Gar Fac Ext Cet Arc Hub Fac Total Allies 68 | . . . . . . 2 . 1 2 4 . 15 . 35 . . . 9 Largest Group 17 | . . . . . . 2 2 1 1 2 . 10 9 17 17 1 . 3 Highest-Rated Group 531 | . . . . . . 59 59 13 21 70 . 300 269 531 448 39 . 87 Highest-Rated Ally 159 | . . . . . . 39 39 13 21 39 . 95 32 159 39 39 . 29 Total Orders . | . . . . . . . . . . . . . . . . . . . Ally Attacks 412 | . . . . . . . 38 4 1 39 . 38 30 139 60 7 . 56 Total Damage 8109 | . . . . . . . 558 47 19 649 . 1290 924 2659 1189 39 . 735 Kills 78 | . . . . . . . 11 . . 5 . 12 8 20 12 1 . 9 Allies Corrupted 2 | . . . . . . . . . . . . . . . . . . 2 Allies Melted . | . . . . . . . . . . . . . . . . . . . Intel | -11 -10 -10 -10 -9 -8 -8 -8 -8 -7 -7 -7 -7 -6 -6 -6 -6 -6 -5 ------- Run | Jun Mat Min Exi Min Mat Gar Mat Gar Fac Gar Fac Gar Fac Ext Cet Arc Hub Fac Robot Analysis Total 11 | . 3 . . . 4 . . . . . 1 . . . . . . 3 Derelict Logs Recovered 3 | . . 1 . 2 . . . . . . . . . . . . . . Drone Launches . | . . . . . . . . . . . . . . . . . . . Drone Recoveries . | . . . . . . . . . . . . . . . . . . . Exploration | -11 -10 -10 -10 -9 -8 -8 -8 -8 -7 -7 -7 -7 -6 -6 -6 -6 -6 -5 ------------- Run | Jun Mat Min Exi Min Mat Gar Mat Gar Fac Gar Fac Gar Fac Ext Cet Arc Hub Fac Turns Passed 18139 | 59 423 343 352 980 356 1400 868 833 219 1316 840 1348 1786 1869 377 642 588 3540 Spaces Moved 8413 | 49 302 227 239 430 117 552 388 376 70 589 341 623 820 751 193 284 265 1797 Core 2 | 2 . . . . . . . . . . . . . . . . . . Treads 4898 | . . . . 18 117 512 388 191 . . 130 264 820 751 193 284 265 965 Legs 1546 | . . . . . . 40 . 185 70 589 211 359 . . . . . 92 Wheels 1967 | 47 302 227 239 412 . . . . . . . . . . . . . 740 Hover . | . . . . . . . . . . . . . . . . . . . Flight . | . . . . . . . . . . . . . . . . . . . Fastest Speed 50 | 50 90 105 130 145 160 160 160 120 190 120 190 160 160 163 160 160 160 95 Average Speed 165 | 88 109 131 144 148 160 203 168 174 190 174 217 176 160 187 160 160 160 151 Slowest Speed 320 | 100 125 145 145 240 160 320 240 320 190 190 260 190 160 245 163 160 160 260 Overloaded Moves . | . . . . . . . . . . . . . . . . . . . Propulsion Burnouts . | . . . . . . . . . . . . . . . . . . . Robots Hopped . | . . . . . . . . . . . . . . . . . . . Cave-ins Triggered 1 | . . . . . . . . . . . . . . . . . . 1 Exploration Rate (%) 47 | 3 43 51 60 74 14 68 34 47 2 76 8 67 26 93 58 83 51 38 Regions Visited 18 Branch Regions 7 Pre-discovered Areas 4 | . 1 1 1 1 . . . . . . . . . . . . . . Known Exits Taken 4 | . . . . . 1 . 1 . 1 . 1 . . . . . . . Unknown Exits Taken 10 | 1 1 1 1 1 . . . . . . . . 1 1 1 1 1 . Scrap Searched 4 | . . 1 . 3 . . . . . . . . . . . . . . Spaces Dug 77 | . . . . . . 11 3 1 . 4 . . . 15 . . 38 5 Terrain Destroyed 1228 | . 5 9 . . 14 100 3 28 . 71 5 2 62 31 61 7 708 122 Melee 14 | . . . . . . . 3 1 . 4 . . . . . . 1 5 Projectile 78 | . . . . . . . . . . 3 5 2 5 16 4 7 10 26 AOE 1135 | . 5 9 . . 14 100 . 27 . 64 . . 57 15 57 . 697 90 Terrain Rammed . | . . . . . . . . . . . . . . . . . . . Walls Destroyed . | . . . . . . . . . . . . . . . . . . . Machines Disabled . | . . . . . . . . . . . . . . . . . . . Actions | -11 -10 -10 -10 -9 -8 -8 -8 -8 -7 -7 -7 -7 -6 -6 -6 -6 -6 -5 --------- Run | Jun Mat Min Exi Min Mat Gar Mat Gar Fac Gar Fac Gar Fac Ext Cet Arc Hub Fac Total 11366 | 60 355 249 245 743 261 706 543 490 113 790 405 780 1180 1115 241 377 351 2362 Wait 1200 | . 6 2 . 284 118 4 102 37 . 50 10 18 235 95 . 8 17 214 Move 8400 | 48 302 226 238 429 117 551 388 375 70 588 341 622 819 750 192 283 264 1797 Hop . | . . . . . . . . . . . . . . . . . . . Pick Up 160 | 5 13 4 1 4 2 10 5 5 2 15 6 14 8 6 9 5 6 40 Fast Attach 114 | 6 10 . 3 2 3 6 2 4 2 5 6 4 4 1 3 1 3 49 Attach 94 | . . 4 . 3 3 8 . 8 5 4 1 6 8 7 2 2 12 21 Detach 15 | . . . . . . 1 . 3 . . . . 2 . . . 2 7 Swap 107 | 1 2 2 . 1 2 11 7 7 2 11 9 13 7 8 4 4 2 14 Drop 153 | . 4 . 3 5 3 6 8 1 1 16 11 21 10 1 13 6 3 41 Fire 721 | . 18 11 . 15 13 71 7 35 30 63 21 71 87 44 18 68 26 123 Melee 142 | . . . . . . 25 24 15 1 8 . . . . . . 16 53 Ram . | . . . . . . . . . . . . . . . . . . . Kick . | . . . . . . . . . . . . . . . . . . . Crush 3 | . . . . . . . . . . . . . . 1 . . . 2 Escape Stasis 55 | . . . . . . 13 . . . 30 . 10 . 2 . . . . Rewire 202 | . . . . . . . . . . . . 1 . 200 . . . 1 Trap . | . . . . . . . . . . . . . . . . . . . Miscellaneous . | . . . . . . . . . . . . . . . . . . . Route ------- -11/Junkyard -10/Materials (discovered 2 exits: [*Mat] / [*Min]) -10/Mines -10/Exiles -9/Mines -8/Materials -8/Garrison (discovered 4 exits: *Mat x4) -8/Materials (discovered 2 exits: *Fac / Gar) -8/Garrison (discovered 3 exits: *Fac x3) -7/Factory (discovered 2 exits: Low / Gar) -7/Garrison (discovered 2 exits: *Fac x2) -7/Factory (discovered 3 exits: *Fac / *Low / Gar) -7/Garrison (discovered 2 exits: *Fac x2) -6/Factory (discovered 4 exits: *Fac x2 / [*Low] / *Ext) -6/Extension (discovered 2 exits: *Fac / *Cet) -6/Cetus (discovered 2 exits: *Fac / *Arc) -6/Archives (discovered 3 exits: *Fac / *Hub x2) -6/Hub_04(d) -5/Factory History --------- Turn | Location | Event 12 | -11/Junkyard | Discovered new exit (range 16) 60 | -11/Junkyard | Entered Materials 243 | -10/Materials | Discovered new exit (range 14) 305 | -10/Materials | Build established: Mutant 346 | -10/Materials | Discovered new exit (range 9) 349 | -10/Materials | Central database locked down 483 | -10/Materials | Entered Mines 546 | -10/Mines | Learned location of Zion (-6) 634 | -10/Mines | Lost 5 parts (1p1n1u2w) 793 | -10/Mines | Received a Rocket Launcher from a helpful Derelict 798 | -10/Mines | Assembled infested the area 819 | -10/Mines | Deemed a non-threat by the Exiles lab entrance 819 | -10/Mines | Discovered new exit (range 5) 826 | -10/Mines | Entered Exiles 863 | -10/Exiles | Met 8R-AWN 884 | -10/Exiles | Met EX-HEX 929 | -10/Exiles | Met EX-BIN 950 | -10/Exiles | Aligned with FarCom system 951 | -10/Exiles | Given EX-Vault access code 985 | -10/Exiles | Opened EX-Vault 996 | -10/Exiles | Found YOLO Cannon 1006 | -10/Exiles | Found Skeleton Box 1065 | -10/Exiles | Warned to stay clear of 0b10 Research branches 1116 | -10/Exiles | Met EX-DEC 1156 | -10/Exiles | Discovered new exit (range 15) 1178 | -10/Exiles | Left Exiles lab with Skeleton Box 1178 | -10/Exiles | Entered Mines 1293 | -9/Mines | Found the Drone Emporium 1302 | -9/Mines | Found Prototype Device 1302 | -9/Mines | Identified Splice Drone Bay 2134 | -9/Mines | Discovered new exit (range 7) 2158 | -9/Mines | Entered Materials 2158 | -8/Materials | Evolved 4 slots: Propulsion x2, Utility x2 2448 | -8/Materials | Garrison activated, responded to threat 2465 | -8/Materials | Build established: Skirmisher 2514 | -8/Materials | Identified exit to Garrison 2514 | -8/Materials | Entered Garrison 2555 | -8/Garrison | Triggered checkpoint 2648 | -8/Garrison | Triggered checkpoint 2656 | -8/Garrison | Triggered checkpoint 2713 | -8/Garrison | Triggered checkpoint 2754 | -8/Garrison | Triggered checkpoint 2792 | -8/Garrison | Build established: Mutant 2907 | -8/Garrison | Lost 3 parts (2n1w) 2997 | -8/Garrison | Discovered new exit (range 12) 3011 | -8/Garrison | Learned Materials security intel 3126 | -8/Garrison | Triggered checkpoint 3165 | -8/Garrison | Discovered new exit (range 5) 3289 | -8/Garrison | Discovered new exit (range 10) 3417 | -8/Garrison | Triggered checkpoint 3479 | -8/Garrison | Installed Relay Interface Framework 3494 | -8/Garrison | Build established: Scavenger-Mutant 3503 | -8/Garrison | Garrison Relay disabled 3809 | -8/Garrison | Discovered new exit (range 11) 3855 | -8/Garrison | Lost 5 parts (1p1n2u1w) 3864 | -8/Garrison | Rescued a captive Derelict 3866 | -8/Garrison | Rescued a captive Derelict 3914 | -8/Garrison | Entered Materials 3914 | -8/Materials | Accompanied by 2 allies 4260 | -8/Materials | Build established: Scavenger-Skirmisher 4498 | -8/Materials | Discovered new exit (range 11) 4679 | -8/Materials | Build established: Scavenger-Assassin 4724 | -8/Materials | Core integrity fell below 50% 4782 | -8/Materials | Identified exit to Garrison 4782 | -8/Materials | Entered Garrison 4800 | -8/Garrison | Triggered checkpoint 5044 | -8/Garrison | Discovered new exit (range 55) 5044 | -8/Garrison | Discovered new exit (range 23) 5044 | -8/Garrison | Discovered new exit (range 47) 5048 | -8/Garrison | Triggered checkpoint 5100 | -8/Garrison | Triggered checkpoint 5186 | -8/Garrison | System corruption reached 10% 5199 | -8/Garrison | Lost 7 parts (1p4n1u1w) 5320 | -8/Garrison | Triggered checkpoint 5335 | -8/Garrison | Core integrity fell below 20% 5420 | -8/Garrison | Expanded RIF knowledge: Watcher Feeds 5461 | -8/Garrison | Garrison Relay disabled 5615 | -8/Garrison | Entered Factory 5615 | -7/Factory | Evolved 2 slots: Utility x1, Weapon x1 5616 | -7/Factory | Identified exit to Lower Caves 5758 | -7/Factory | Build established: Bothacker-Mutant 5793 | -7/Factory | Garrison activated, responded to threat 5831 | -7/Factory | Lost 6 parts (1p2n1u2w) 5834 | -7/Factory | Identified exit to Garrison 5834 | -7/Factory | Entered Garrison 5907 | -7/Garrison | Expanded RIF knowledge: Signal Jamming 6066 | -7/Garrison | Phase Generator disabled 6091 | -7/Garrison | Heavy support dispatched to Factory 6112 | -7/Garrison | Heavy support dispatched to Factory 6258 | -7/Garrison | Triggered checkpoint 6293 | -7/Garrison | Garrison Relay disabled 6430 | -7/Garrison | Triggered checkpoint 6464 | -7/Garrison | Triggered checkpoint 6480 | -7/Garrison | Triggered checkpoint 6580 | -7/Garrison | Discovered new exit (range 8) 6614 | -7/Garrison | Triggered checkpoint 6654 | -7/Garrison | H-XX Assembler disabled 6992 | -7/Garrison | Discovered new exit (range 12) 7042 | -7/Garrison | Triggered checkpoint 7095 | -7/Garrison | Garrison Relay disabled 7150 | -7/Garrison | Entered Factory 7478 | -7/Factory | Discovered new exit (range 11) 7566 | -7/Factory | Core integrity fell below 50% 7977 | -7/Factory | Discovered exit to Lower Caves (range 21) 7990 | -7/Factory | Identified exit to Garrison 7990 | -7/Factory | Entered Garrison 8016 | -7/Garrison | Expanded RIF knowledge: Robot Detection 8083 | -7/Garrison | Found embedded Infiltrators 8148 | -7/Garrison | Triggered checkpoint 8188 | -7/Garrison | Garrison Relay disabled 8324 | -7/Garrison | Triggered checkpoint 8363 | -7/Garrison | Triggered checkpoint 8430 | -7/Garrison | Triggered checkpoint 8646 | -7/Garrison | Triggered checkpoint 8678 | -7/Garrison | Garrison Relay disabled 8735 | -7/Garrison | Rescued a captive Derelict 8779 | -7/Garrison | Discovered new exit (range 11) 9249 | -7/Garrison | Discovered new exit (range 10) 9262 | -7/Garrison | Triggered checkpoint 9283 | -7/Garrison | Garrison Relay disabled 9338 | -7/Garrison | Entered Factory 9338 | -6/Factory | Accompanied by 9 allies 9338 | -6/Factory | Evolved 2 slots: Utility x2 9403 | -6/Factory | Repaired Remote Datajack 9773 | -6/Factory | Fabricated Imp. Heavy Armor Plating (x1) 10183 | -6/Factory | Discovered new exit (range 16) 10248 | -6/Factory | Discovered new exit (range 29) 10474 | -6/Factory | Build established: Scavenger-Mutant 11049 | -6/Factory | Discovered new exit (range 16) 11102 | -6/Factory | Discovered new exit (range 15) 11124 | -6/Factory | Entered Extension 11202 | -6/Extension | Rescued a captive Derelict 11237 | -6/Extension | Remotely autohacked Sealed Heavy Doors 11237 | -6/Extension | Rescued a captive Derelict 11243 | -6/Extension | Rescued a captive Derelict 11279 | -6/Extension | Remotely autohacked Sealed Heavy Doors 11280 | -6/Extension | Rescued a captive Derelict 11281 | -6/Extension | Rescued a captive Derelict 11574 | -6/Extension | Rescued A7 11600 | -6/Extension | Rescued a captive Derelict 11601 | -6/Extension | Rescued a captive Derelict 11819 | -6/Extension | Build established: Commander-Skirmisher 12099 | -6/Extension | Spotted B-75 Beast 12118 | -6/Extension | Allies destroyed B-75 Beast 12139 | -6/Extension | Destroyed B-75 Beast 12170 | -6/Extension | Extracted ID and sensor layout for unrecognized location from A7's data core 12512 | -6/Extension | Rescued a captive Derelict 12557 | -6/Extension | Rescued a captive Derelict 12558 | -6/Extension | Rescued a captive Derelict 12879 | -6/Extension | Discovered new exit (range 32) 12973 | -6/Extension | Discovered new exit (range 6) 12993 | -6/Extension | Entered Cetus 12993 | -6/Cetus | Accompanied by 17 allies 13005 | -6/Cetus | Build established: Commander-Tank 13022 | -6/Cetus | Spotted Cetus Guard 13024 | -6/Cetus | Spotted Cetus Guard 13025 | -6/Cetus | Spotted Cetus Guard 13027 | -6/Cetus | Spotted Cetus Guard 13034 | -6/Cetus | Allies destroyed Cetus Guard 13038 | -6/Cetus | Allies destroyed Cetus Guard 13040 | -6/Cetus | Allies destroyed Cetus Guard 13042 | -6/Cetus | Allies destroyed Cetus Guard 13189 | -6/Cetus | Discovered new exit (range 16) 13210 | -6/Cetus | Discovered new exit (range 27) 13231 | -6/Cetus | Spotted Cetus Guard 13231 | -6/Cetus | Spotted Cetus Guard 13231 | -6/Cetus | Spotted Cetus Guard 13233 | -6/Cetus | Spotted Cetus Guard 13239 | -6/Cetus | Allies destroyed Cetus Guard 13241 | -6/Cetus | Allies destroyed Cetus Guard 13248 | -6/Cetus | Allies destroyed Cetus Guard 13258 | -6/Cetus | Destroyed Cetus Guard 13262 | -6/Cetus | Met Revision 17 13354 | -6/Cetus | Destroyed 7 combat bots 13370 | -6/Cetus | Entered Archives 13370 | -6/Archives | Accompanied by 1 ally 13476 | -6/Archives | Discovered new exit (range 14) 13661 | -6/Archives | Discovered new exit (range 16) 13677 | -6/Archives | Discovered new exit (range 16) 13682 | -6/Archives | Unable to access archive contents 13698 | -6/Archives | Unable to access archive contents 13714 | -6/Archives | Unable to access archive contents 13731 | -6/Archives | Unable to access archive contents 13747 | -6/Archives | Unable to access archive contents 13772 | -6/Archives | Build established: Scavenger-Mutant 14012 | -6/Archives | Entered Hub_04(d) 14012 | -6/Hub_04(d) | Discovered new exit (range 10) 14343 | -6/Hub_04(d) | Lost 6 parts (1p4u1w) 14501 | -6/Hub_04(d) | Network Hub disabled 14509 | -6/Hub_04(d) | Network Hub disabled 14524 | -6/Hub_04(d) | Spotted Lightning 14528 | -6/Hub_04(d) | Spotted Lightning 14531 | -6/Hub_04(d) | Spotted Lightning 14532 | -6/Hub_04(d) | Spotted Lightning 14533 | -6/Hub_04(d) | Spotted Lightning 14539 | -6/Hub_04(d) | Spotted Lightning 14544 | -6/Hub_04(d) | Spotted Lightning 14548 | -6/Hub_04(d) | Spotted Lightning 14551 | -6/Hub_04(d) | Spotted Lightning 14569 | -6/Hub_04(d) | Network Hub disabled 14569 | -6/Hub_04(d) | Network Hub disabled 14576 | -6/Hub_04(d) | System corruption reached 10% 14578 | -6/Hub_04(d) | Core integrity fell below 50% 14593 | -6/Hub_04(d) | Core integrity fell below 20% 14600 | -6/Hub_04(d) | Entered Factory 14600 | -5/Factory | Evolved 2 slots: Power x1, Utility x1 14627 | -5/Factory | Lost 12 parts (1p3n5u3w) 14753 | -5/Factory | Lost 6 parts (1n5w) 14952 | -5/Factory | Fabricated B-48 Gladiator (x3) 14984 | -5/Factory | Garrison activated, responded to threat 15566 | -5/Factory | Lost 4 parts (3n1u) 15614 | -5/Factory | Build established: Hacker-Mutant 15770 | -5/Factory | Fabricated Imp. Heavy Armor Plating (x1) 15811 | -5/Factory | Core integrity fell below 50% 15823 | -5/Factory | Repaired Centrium Heavy Treads? 15826 | -5/Factory | Fabricated Cld. Gravmag System (x1) 15834 | -5/Factory | Crushed by falling debris 15834 | -5/Factory | System corruption reached 10% 15865 | -5/Factory | Lost 3 parts (3u) 15958 | -5/Factory | Repaired Broken Hvy. Linear Accelerator? 16293 | -5/Factory | Lost 4 parts (3u1w) 16600 | -5/Factory | Build established: Scavenger-Mutant 16861 | -5/Factory | Found Hvy. Insulated Plating 17008 | -5/Factory | Build established: Hacker-Mutant 17578 | -5/Factory | Fabricated Centrium Heavy Treads (x1) 17608 | -5/Factory | Core integrity fell below 20% 18104 | -5/Factory | Fabricated Centrium Heavy Treads (x1) 18140 | -5/Factory | Destroyed by G-67 Veteran with Plasma Rifle Last Messages --------------- 18122_ K-01 Serf collects debris. 18124_ R-10 Processor collects Lgt. Angular Momentum Engine. 18125_ Slug penetrates Assembly Bed. 18125_ K-01 Serf collects debris. 18128_ U-05 Engineer destroyed. 18128_ K-01 Serf collects debris. 18131_ G-50 Soldier suffers critical hit (Meltdown). 18132_ System corrupted: IFF burst signal emitted. 18132_ K-01 Serf collects debris. 18133_ Activated siege mode. 18133_ U-05 Engineer builds a Wall. 18134_ R-10 Processor collects Hvy. Laser. 18134_ K-01 Serf collects debris. 18135_ G-50 Soldier destroyed. 18136_ K-01 Serf cleans the Fabricator. 18137_ U-05 Engineer destroyed. 18138_ R-10 Processor collects Unknown Processor. 18138_ G-50 Soldier knocked back. 18138_ K-01 Serf collects debris. 18139_ K-01 Serf cleans the Fabricator. Map ----- +----------------------------------------------------+ | " # #???# """ """ #??# """ """ #A | | ##### # ###???# """ """ #??# """S""" # | | " #???######?????# """ """ #??# ! # | | " #??????????????# #??############## | | " #??????????????# ! #???????????????# | | ]#??????????????# !! #???????????????# | | " #??????????????# ! #???????????????# | | " #??????????????###############???????????# | | " #???????????????# #???????????# | | #???????????????# #???????????# | | #+##???????######### """" """ #???????????# | | # #????????# + """" """ #???????????# | | # #????????# ####### """" """ #???????????# | | # ##########+#?????# """" #???????????# | | # ## #?????# #??????????? | | # ## #?????# """" """" #?????????? | | # ## #?????# """" """" #????????? | | # #?????# """" """" #????????? | | + #?????# """" """" #???????? | | # #?????# #??????? ####### | | # ## #?????#######+########### ??????? | | # ## #?????????# ??????? | | #/############?????????# ??????? | | ????????????????????# """ ??????? | | ????????????######### ""F"" #?????? | | ??????? R =% @ ""=""k ???????? | | ??????????????#######u #######????????? | | ???????????????????##=%! #??????????????? | | ?????????????????? g#%%%k #??????????????? | | #???????????????? #=*g* #??????????????? | | ####???????????????"" g#u*!!"" " #??????????????? | | ?????????????????? "" +%%!"""" u ?????????????? | | ????????????????? """?#%|="""""A ###????????????? | | ???????????????? ? """?#%R """"" #??????????????? | | ?????????????????? ""??# %g ?? #??????????????? | | ???????????????????????# % ????? #??????????????? | | ???????????????????????#g ??????#??????????????? | | ???????????????????????# ?????????????????????? | | ???????????????????????# ?????????????????????? | | ???????????????????????#%% ?????????????????????? | | ???????????????????????? k?????????????????????? | | ?????????????????????????????????????????????????? | | ?????????????????????????????????????????????????? | | ?????????????????????????????????????????????????? | | ?????????????????????????????????????????????????? | | ?????????????????????????????????????????????????? | | ?????????????????????????????????????????????????? | | ?????????????????????????????????????????????????? | | ?????????????????????????????????????????????????? | | ?????????????????????????????????????????????????? | +----------------------------------------------------+ Best States ------------- Heat Dissipation 75 Energy Generation 28 Energy Capacity 350 Matter Stores 322 Matter Capacity 450 Sight Range 22 Terrain Scan Range 14 Terrain Scan Density 110 Corruption Block 6 Armor Coverage 1500 Resistance: EX 25 Resistance: EM 30 Weapon Shielding 66 Weapon Cycling 25 Phase Shifting 5 Evasion (%) 55 Targeting Accuracy 8 Target Analysis 9 Recoil Reduction 4 Kinecelleration 40 Offensive Hacking 26 Defensive Hacking 14 Relay Coupler Types 3 Relay Coupler Value 53 Item Schematics ----------------- Adv. Treads | -8/Materials | Scanalyzed Imp. Heat Sink | -8/Materials | Scanalyzed Lgt. Armor Plating | -8/Materials | Scanalyzed Remote Datajack | -7/Factory | Hacked Enh. Nuclear Core | -7/Factory | Scanalyzed Imp. Heavy Armor Plating | -7/Factory | Scanalyzed Centrium Heavy Treads | -5/Factory | Scanalyzed Adv. Weapon Cycler | -5/Factory | Scanalyzed Imp. Remote Datajack | -5/Factory | Scanalyzed Imp. Hardlight Generator | -5/Factory | Scanalyzed Imp. Kinecellerator | -5/Factory | Scanalyzed Lrn. Tractor Beam | -5/Factory | Scanalyzed Corruption Screen | -5/Factory | Scanalyzed Axe | -5/Factory | Scanalyzed Robot Schematics ------------------ None Fabricated ------------ Imp. Heavy Armor Plating | x1 | -6/Factory B-48 Gladiator | x3 | -5/Factory | Preloaded Imp. Heavy Armor Plating | x1 | -5/Factory Cld. Gravmag System | x1 | -5/Factory | Preloaded Centrium Heavy Treads | x1 | -5/Factory Centrium Heavy Treads | x1 | -5/Factory Alien Tech Used ----------------- None Achievements -------------- 404 Challenges ------------ None Game ------ Seed ProcessingBoreExoskeleton Manual? 0 Play Time 03:10:14 Cumulative 138.5 hours Start 2023.12.07 @ 14:59:57 End 2023.12.07 @ 18:18:51 Sessions 1 Manual Loads 0 Difficulty Rogue Special Mode None Game No. 105 Rogue 102 Adventurer 3 Explorer 0 Win Type - Total 1 Types 1/0/0/0/0/0/0/0/0 Lore% 69 Gallery% 76 Achievement% 58 Wizard Run 0 Options --------- ASCII 0 Keyboard 0 Movement Mouse Keybinds 0 Fullscreen 2 Font 18/SmallcapsGlow Map View 76x50 Tactical HUD 1 Map Filters NONE Filters NONE Steam 1 RUN: f72dfda6-416d-46e6-b2da-8cd4e90a36c2